fUSD/lending_fUSD_20240319
["ID","MTS","AMOUNT","RATE_DAILY","PERIOD"]
[319545262,1710841638574,204.53753077,0.00027806,2]
[319545263,1710841639252,204.53753077,0.00029908,2]
[319545264,1710841643936,168.68817905,0.00029853,2]
[319545265,1710841644749,158.79257558,0.00026025,2]
[319545266,1710841645044,174.6013675,0.00027372,2]
[319545267,1710841645806,158.79257558,0.00026139,2]
[319545268,1710841646316,158.79257558,0.00028538,2]
[319545269,1710841659114,2500.0,0.00025,120]
[319545270,1710841668375,180.13,0.00012165,2]
[319545271,1710841702349,359.67943742,0.0003,4]
[319545272,1710841708540,2000.0,0.0002428,2]
[319545273,1710841708588,1850.0,0.00024971,2]
[319545290,1710841814918,515.0,0.000184,2]
[319545295,1710841831598,-398.76553035,0.00030001,4]
[319545296,1710841831608,-35.18086085,0.00030002,7]
[319545302,1710841833177,-118.93016022,0.00030002,7]
[319545303,1710841833187,-272.66941827,0.00030037,120]
[319545304,1710841833210,-482.26912178,0.00030037,120]
[319545305,1710841833223,-325.90126456,0.00030037,120]
[319545306,1710841833250,-800.61809539,0.00030037,120]
[319545307,1710841833260,-184.9683947,0.00030235,7]
[319545308,1710841833271,-184.9683947,0.00030674,7]
[319545309,1710841833282,-3408.8298,0.00030918,2]
[319545310,1710841833291,-157.77358175,0.00030941,2]
[319545311,1710841833301,-290.29238754,0.00031,2]
[319545312,1710841833314,-124.72761246,0.00031,2]
[319545313,1710841833324,-516.4,0.00031,2]
[319545314,1710841833334,-415.02,0.00031,2]
[319545315,1710841833344,-282.1,0.00031,2]
[319545316,1710841833354,-364.11937944,0.00031118,4]
[319545317,1710841833364,-204.53753077,0.00031222,7]
[319545318,1710841833378,-152.69092156,0.00031959,7]
[319545319,1710841833387,-1000.0,0.00032,3]
[319545320,1710841833396,-1000.0,0.00032,3]
[319545321,1710841833406,-156.78245888,0.00032004,7]
[319545322,1710841833415,-184.9683947,0.0003214,7]
[319545323,1710841833424,-204.53753077,0.00032151,7]
[319545324,1710841833434,-184.96839471,0.00032431,7]
[319545325,1710841833443,-272.23,0.00032823,2]
[319545326,1710841833453,-1000.0,0.00033,4]
[319545327,1710841833463,-1000.0,0.00033,4]
[319545328,1710841833472,-1000.0,0.00033,4]
[319545329,1710841833482,-1000.0,0.00033,4]
[319545330,1710841833492,-154.11102107,0.00033007,7]
[319545331,1710841833501,-155.06867801,0.00033229,7]
[319545332,1710841833511,-157.95,0.000335,2]
[319545333,1710841833521,-155.06867801,0.0003353,7]
[319545334,1710841833530,-155.06867801,0.00033869,7]
[319545335,1710841833540,-498.31519985,0.00034037,4]
[319545336,1710841833550,-1963.353912,0.00034037,4]
[319545337,1710841833561,-167.82272293,0.00034037,4]
[319545338,1710841833570,-629.28978975,0.00034038,4]
[319545339,1710841833580,-703.72396351,0.00034038,15]
[319545340,1710841833589,-4612.35754934,0.00034039,7]
[319545341,1710841833599,-11327.93828767,0.00034039,4]
[319545342,1710841833610,-189.63733249,0.00034039,4]
[319545343,1710841833623,-2855.22865617,0.0003404,5]
[319545344,1710841833636,-185.04944988,0.0003404,5]
[319545345,1710841833646,-341.07,0.00034041,120]
[319545346,1710841833655,-1000.0,0.00034042,2]
[319545347,1710841833665,-212.39660578,0.00034044,4]
[319545348,1710841833675,-484.03196119,0.00034044,4]
[319545349,1710841833685,-342.89838954,0.00034044,4]
[319545350,1710841833695,-656.31211474,0.00034044,4]
[319545351,1710841833707,-126.31581676,0.00034044,4]
[319545352,1710841833717,-176.51671324,0.00034045,4]
[319545353,1710841833729,-104.6703725,0.00034045,4]
[319545354,1710841833738,-158.79257558,0.00034186,7]
[319545355,1710841833748,-152.69092156,0.0003427,7]
[319545356,1710841833757,-204.53753077,0.00034279,7]
[319545357,1710841833767,-641.1,0.00034381,2]
[319545358,1710841833777,-157.22,0.00034383,10]
[319545359,1710841833787,-321.65,0.00034392,2]
[319545360,1710841833796,-1000.0,0.00034397,2]
[319545361,1710841833805,-317.53,0.00034405,2]
[319545362,1710841833815,-279.60455225,0.00034474,2]
[319545363,1710841833826,-529.64544775,0.00034474,2]
[319545364,1710841833836,-150.0,0.00034548,10]
[319545365,1710841833845,-67.12685984,0.00034551,7]
[319545366,1710841833857,-87.94181817,0.00034551,7]
[319545367,1710841833867,-250.0,0.00034579,2]
[319545368,1710841833880,-250.0,0.00034588,110]
[319545369,1710841833890,-175.75,0.0003461,2]
[319545370,1710841833900,-921.56089982,0.0003468,2]
[319545371,1710841833910,-1828.76955902,0.0003468,2]
[319545372,1710841833920,-5000.0,0.00034769,2]
[319545373,1710841833930,-23900.0,0.0003478,2]
[319545374,1710841833939,-163.99,0.00034937,2]
[319545375,1710841833949,-222.11,0.00034988,2]
[319545376,1710841833959,-1000.0,0.00035,6]
[319545377,1710841833969,-1000.0,0.00035,6]
[319545378,1710841833979,-1000.0,0.00035,6]
[319545379,1710841833988,-1000.0,0.00035,6]
[319545380,1710841833997,-1000.0,0.00035,6]
[319545381,1710841834006,-272.23,0.00035087,2]
[319545382,1710841834016,-163.99,0.00035393,2]
[319545383,1710841834026,-152.69092156,0.00035544,7]
[319545384,1710841834038,-163.99,0.00035848,2]
[319545385,1710841834048,-1000.0,0.00036,7]
[319545386,1710841834058,-1000.0,0.00036,6]
[319545387,1710841834070,-163.99,0.00036303,2]
[319545388,1710841834081,-921.5608998,0.000367,2]
[319545389,1710841834091,-1828.769559,0.000367,2]
[319545390,1710841834100,-163.99,0.00036758,2]
[319545391,1710841834110,-204.53753077,0.00036771,7]
[319545392,1710841834119,-159.30390227,0.00036806,7]
[319545393,1710841834130,-2652.8636,0.000369,2]
[319545394,1710841834140,-460.41812374,0.00036951,7]
[319545395,1710841834149,-1000.0,0.00037,7]
[319545396,1710841834159,-1000.0,0.00037,7]
[319545397,1710841834168,-1000.0,0.00037,7]
[319545398,1710841834179,-1000.0,0.00037,8]
[319545399,1710841834189,-1000.0,0.00037,7]
[319545400,1710841834198,-204.53753077,0.00037041,7]
[319545401,1710841834208,-204.53753077,0.00037174,7]
[319545402,1710841834218,-809.25,0.00037214,2]
[319545403,1710841834227,-272.23,0.00037351,2]
[319545404,1710841834237,-204.53753077,0.00037531,7]
[319545405,1710841834246,-155.06867801,0.00037661,7]
[319545406,1710841834255,-151.16603036,0.00037817,7]
[319545407,1710841834265,-1000.0,0.00038,10]
[319545408,1710841834275,-1000.0,0.00038,10]
[319545409,1710841834286,-341.07,0.00038296,120]
[319545410,1710841834296,-641.1,0.00038679,2]
[319545411,1710841834306,-155.06867801,0.00038691,7]
[319545412,1710841834316,-262.29,0.00038698,2]
[319545413,1710841834326,-157.95,0.000387,3]
[319545414,1710841834336,-717.3235,0.000387,2]
[319545415,1710841834347,-50105.9036,0.000387,2]
[319545416,1710841834356,-921.5608998,0.0003872,2]
[319545417,1710841834366,-1828.769559,0.0003872,2]
[319545418,1710841834380,-1674.6549,0.00038797,3]
[319545419,1710841834390,-800.24573974,0.00038798,9]
[319545420,1710841834401,-5646.0587,0.00038798,10]
[319545421,1710841834410,-27031.2876,0.00038798,2]
[319545422,1710841834419,-98848.8004,0.000388,2]
[319545423,1710841834429,-372.8797737,0.000388,11]
[319545424,1710841834438,-204.53753077,0.0003882,7]
[319545425,1710841834448,-159.30390227,0.00038827,7]
[319545426,1710841834458,-305.6037391,0.00038889,30]
[319545427,1710841834468,-218.58736696,0.00038895,4]
[319545428,1710841834477,-155.39131758,0.00038895,4]
[319545429,1710841834487,-155.0,0.00038895,4]
[319545430,1710841834497,-403.29782879,0.00038895,4]
[319545431,1710841834506,-1149.68691894,0.00038895,4]
[319545432,1710841834516,-547.88346806,0.00038896,4]
[319545433,1710841834526,-10537.34936663,0.00038896,4]
[319545434,1710841834536,-1462.92760708,0.00038896,4]
[319545435,1710841834545,-678.98981162,0.00038896,4]
[319545436,1710841834555,-204.4040776,0.00038896,4]
[319545437,1710841834565,-373.81422416,0.00038897,4]
[319545438,1710841834574,-53098.92871584,0.00038897,2]
[319545439,1710841834583,-100087.51756943,0.00038898,30]
[319545440,1710841834593,-4044.22426239,0.000389,15]
[319545441,1710841834603,-5199.59336161,0.000389,5]
[319545442,1710841834612,-204.53753077,0.00039212,7]
[319545443,1710841834624,-155.06867801,0.00039318,7]
[319545444,1710841834633,-272.23,0.00039615,2]
[319545445,1710841834643,-158.38189637,0.00039655,7]
[319545446,1710841834652,-204.53753077,0.00039718,7]
[319545447,1710841834662,-20000.0,0.000398,120]
[319545448,1710841834672,-2227.7708977,0.000399,2]
[319545449,1710841834681,-8989.62601912,0.000399,2]
[319545450,1710841834691,-386.11588003,0.00039936,2]
[319545451,1710841834700,-809.25,0.00039954,2]
[319545452,1710841834710,-1060.00055851,0.00039999,4]
[319545453,1710841834719,-1170.16065982,0.0004,120]
[319545454,1710841834728,-37350.64724579,0.0004,4]
[319545455,1710841834737,-1325.80857974,0.0004,4]
[319545456,1710841834748,-1000.0,0.0004,10]
[319545457,1710841834758,-1000.0,0.0004,10]
[319545458,1710841834768,-1000.0,0.0004,10]
[319545459,1710841834779,-502.0,0.0004,11]
[319545460,1710841834788,-387.64201907,0.0004001,15]
[319545461,1710841834799,-1380.914,0.00040036,2]
[319545462,1710841834809,-2561.0,0.00040036,2]
[319545463,1710841834820,-959.0,0.00040036,2]
[319545464,1710841834829,-536.222,0.00040036,2]
[319545465,1710841834839,-603.0,0.00040036,2]
[319545466,1710841834850,-1264.0,0.00040036,2]
[319545467,1710841834859,-278.891,0.00040036,2]
[319545468,1710841834871,-1250.0,0.00040036,2]
[319545469,1710841834881,-434.459,0.00040036,2]
[319545470,1710841834891,-801.0,0.00040036,2]
[319545471,1710841834901,-473.612,0.00040036,2]
[319545472,1710841834911,-2931.0,0.00040036,2]
[319545473,1710841834921,-1144.69,0.00040036,2]
[319545474,1710841834930,-2419.0,0.00040036,2]
[319545475,1710841834940,-151.107,0.00040036,2]
[319545476,1710841834949,-1469.157,0.00040036,2]
[319545477,1710841834958,-214.0,0.00040036,2]
[319545478,1710841834968,-1623.0,0.00040036,2]
[319545479,1710841834977,-150.0,0.00040036,2]
[319545480,1710841834986,-2445.0,0.00040036,2]
[319545481,1710841834996,-4760.0,0.00040036,2]
[319545482,1710841835005,-4018.10802961,0.00040036,2]
[319545483,1710841835373,-2649.62890931,0.00040036,2]
[319545484,1710841836042,-339.76599998,0.00040036,2]
[319545485,1710841836060,-445.095,0.00040036,2]
[319545486,1710841836073,-268.018002,0.00040036,2]
[319545487,1710841836091,-1069.79964106,0.00040036,2]
[319545488,1710841836110,-612.10230952,0.00040036,2]
[319545489,1710841836125,-272.238,0.00040036,2]
[319545490,1710841836138,-1373.6565046,0.00040036,2]
[319545491,1710841836152,-1804.0,0.00040036,2]
[319545569,1710841838097,-1000.0,0.000387,2]
[319545571,1710841838106,-1495.69676241,0.00040036,2]
[319545573,1710841838117,-341.99163343,0.00040036,2]
[319545576,1710841838132,-28199.89920808,0.00040036,2]
[319545579,1710841838141,-5685.479,0.00040036,2]
[319545582,1710841838150,-150.115,0.00040036,2]
[319545585,1710841838161,-150.136,0.00040036,2]
[319545588,1710841838169,-1048.724,0.00040036,2]
[319545591,1710841838179,-150.0,0.00040036,2]
[319545594,1710841838188,-204.53753077,0.00040244,30]
[319545597,1710841838197,-204.53753077,0.00040369,30]
[319545600,1710841838206,-1530.73753751,0.000405,2]
[319545605,1710841838229,-697.03336018,0.000405,2]
[319545610,1710841838239,-1581.89266768,0.00040518,2]
[319545613,1710841838251,-7340.00000001,0.00040518,2]
[319545616,1710841838266,-67.73335139,0.00040518,2]
[319545620,1710841838276,-204.53753077,0.00040807,30]
[319545622,1710841838286,-155.06867801,0.00040895,30]
[319545624,1710841838295,-152.69092156,0.00041028,30]
[319545626,1710841838305,-158.79257558,0.00041087,30]
[319545628,1710841838315,-183.0,0.00041096,2]
[319545630,1710841838325,-165.42466788,0.00041148,30]
[319545632,1710841838334,-272.23,0.00041879,2]
[319545634,1710841838343,-505.0,0.00042,12]
[319545636,1710841838353,-156.51853803,0.00042098,30]
[319545638,1710841838362,-204.53753077,0.00042219,30]
[319545640,1710841838373,-204.53753077,0.00042287,30]
[319545642,1710841838382,-2227.77089769,0.000423,4]
[319545644,1710841838391,-3606.60979398,0.00042316,4]
[319545646,1710841838403,-5383.0162251,0.00042316,4]
[319545648,1710841838412,-341.07,0.00042551,120]
[319545650,1710841838422,-255.58075342,0.000429,7]
[319545652,1710841838432,-641.1,0.00042977,2]
[319545654,1710841838441,-499.486601,0.00043,120]
[319545656,1710841838450,-1379.0,0.00043036,2]
[319545658,1710841838460,-1900.74642048,0.00043036,2]
[319545660,1710841838473,-25.98257952,0.00043036,2]
[319545662,1710841838482,-959.0,0.00043036,2]
[319545664,1710841838492,-536.0,0.00043036,2]
[319545666,1710841838501,-165.31693318,0.00043036,2]
[319545670,1710841838524,-1098.68306682,0.00043036,2]
[319545671,1710841838533,-1250.0,0.00043036,2]
[319545673,1710841838542,-432.0,0.00043036,2]
[319545674,1710841838551,-801.0,0.00043036,2]
[319545676,1710841838560,-35.84958314,0.00043036,2]
[319545678,1710841838572,-321.15041686,0.00043036,2]
[319545680,1710841838582,-329.27692314,0.00043036,2]
[319545683,1710841838593,-330.33,0.00043036,2]
[319545685,1710841838609,-2271.39307686,0.00043036,2]
[319545687,1710841838619,-1136.0,0.00043036,2]
[319545689,1710841838631,-1402.534,0.00043036,2]
[319545691,1710841838640,-1459.0,0.00043036,2]
[319545693,1710841838649,-213.0,0.00043036,2]
[319545695,1710841838658,-1623.0,0.00043036,2]
[319545697,1710841838669,-150.0,0.00043036,2]
[319545699,1710841838678,-1668.202,0.00043036,2]
[319545701,1710841838687,-3552.759,0.00043036,2]
[319545703,1710841838696,-150.0,0.00043036,2]
[319545705,1710841838705,-204.53753077,0.00043145,30]
[319545707,1710841838715,-1618.0,0.00043231,7]
[319545709,1710841838724,-157.95,0.000439,4]
[319545711,1710841838733,-152.69092156,0.00044018,30]
[319545713,1710841838742,-155.0,0.00044098,4]
[319545715,1710841838751,-2227.77089769,0.000441,6]
[319545717,1710841838760,-8989.62601908,0.00044113,6]
[319545719,1710841838769,-272.23,0.00044143,2]
[319545721,1710841838779,-152.0,0.00044325,3]
[319545723,1710841838788,-155.06867801,0.00044631,30]
[319545725,1710841838797,-157.22,0.00044657,120]
[319545727,1710841838806,-151.16603036,0.0004473,30]
[319545729,1710841838815,-158.79257558,0.0004473,30]
[319545731,1710841838824,-155.06867801,0.00044879,30]
[319545733,1710841838833,-193.42559001,0.00044985,4]
[319545735,1710841838843,-2119.42689571,0.00044985,4]
[319545737,1710841838852,-932.36394227,0.00044986,4]
[319545739,1710841838860,-455.09101079,0.00044997,2]
[319545741,1710841838870,-100000.0,0.00045,15]
[319545743,1710841838880,-327.12261434,0.00045,4]
[319545744,1710841838889,-155.06867801,0.0004511,30]
[319545746,1710841838898,-173.031918,0.00045498,45]
[319545748,1710841838907,-173.031918,0.00045798,46]
[319545750,1710841838916,-2227.77089769,0.000459,7]
[319545752,1710841838926,-500.0,0.000459,16]
[319545754,1710841838935,-8989.62601908,0.00045911,7]
[319545756,1710841838944,-100000.0,0.00046,16]
[319545758,1710841838953,-907.88,0.00046036,2]
[319545760,1710841838962,-1250.0,0.00046036,2]
[319545762,1710841838972,-801.0,0.00046036,2]
[319545764,1710841838981,-1024.62,0.00046036,2]
[319545766,1710841838991,-222.11,0.00046221,120]
[319545768,1710841839000,-204.53753077,0.00046307,30]
[319545770,1710841839010,-272.23,0.00046406,2]
[319545772,1710841839018,-204.53753077,0.00046419,30]
[319545774,1710841839027,-173.031918,0.00046498,47]
[319545776,1710841839038,-159.30390229,0.00046617,30]
[319545778,1710841839047,-204.53753077,0.00046779,30]
[319545780,1710841839056,-155.0817669,0.00046782,30]
[319545782,1710841839066,-173.031918,0.00046798,47]
[319545784,1710841839077,-341.07,0.00046806,120]
[319545786,1710841839088,-152.6909216,0.00046894,30]
[319545788,1710841839098,-150.0,0.00046928,7]
[319545790,1710841839109,-100000.0,0.00047,17]
[319545792,1710841839117,-250.0,0.00047,2]
[319545794,1710841839130,-178.31,0.00047,2]
[319545796,1710841839138,-500.0,0.00047,2]
[319545798,1710841839147,-260.57,0.00047,60]
[319545799,1710841839157,-150.0,0.00047015,7]
[319545801,1710841839167,-150.0,0.00047022,7]
[319545803,1710841839176,-150.0,0.00047065,7]
[319545805,1710841839186,-260.57,0.00047137,60]
[319545806,1710841839195,-150.0,0.00047164,7]
[319545808,1710841839204,-150.0,0.00047175,7]
[319545810,1710841839214,-150.0,0.00047211,7]
[319545812,1710841839223,-204.53753077,0.00047271,30]
[319545814,1710841839232,-260.57,0.00047274,60]
[319545815,1710841839242,-641.1,0.00047274,2]
[319545817,1710841839252,-156.51853803,0.00047323,30]
[319545819,1710841839261,-150.0,0.00047398,7]
[319545821,1710841839271,-476.26966994,0.00047411,60]
[319545823,1710841839280,-155.06867801,0.0004743,30]
[319545824,1710841839289,-173.031918,0.00047498,48]
[319545826,1710841839298,-150.0,0.00047515,7]
[319545828,1710841839307,-150.54653537,0.00047517,30]
[319545830,1710841839317,-178.31,0.00047548,2]
[319545832,1710841839326,-500.0,0.00047548,2]
[319545834,1710841839335,-158.38189638,0.00047632,30]
[319545835,1710841839344,-150.0,0.0004764,7]
[319545836,1710841839353,-150.0,0.00047694,7]
[319545837,1710841839363,-2227.77089769,0.000477,9]
[319545838,1710841839374,-150.0,0.00047701,7]
[319545839,1710841839384,-8989.62601908,0.00047709,9]
[319545841,1710841839394,-150.0,0.00047724,7]
[319545843,1710841839403,-155.06867801,0.00047744,30]
[319545846,1710841839413,-150.0,0.00047783,7]
[319545849,1710841839422,-173.031918,0.00047798,48]
[319545851,1710841839432,-157.77358175,0.000479,2]
[319545854,1710841839442,-151.69461141,0.000479,36]
[319545857,1710841839452,-241.90791721,0.000479,2]
[319545860,1710841839462,-190.47272846,0.000479,23]
[319545863,1710841839471,-150.0,0.00047934,7]
[319545865,1710841839481,-100000.0,0.00048,18]
[319545868,1710841839491,-19158.28292643,0.00048,10]
[319545870,1710841839500,-204.53753077,0.00048061,30]
[319545873,1710841839510,-155.06867801,0.00048091,30]
[319545875,1710841839518,-178.31,0.00048096,2]
[319545877,1710841839528,-500.0,0.00048096,2]
[319545880,1710841839537,-150.0,0.00048102,7]
[319545882,1710841839546,-150.0,0.00048122,7]
[319545884,1710841839555,-317.53,0.00048167,2]
[319545886,1710841839565,-426.32983822,0.00048199,30]
[319545888,1710841839575,-258.33177785,0.00048199,30]
[319545890,1710841839584,-150.0,0.00048204,7]
[319545891,1710841839594,-174.6013675,0.00048417,30]
[319545893,1710841839604,-150.0,0.00048475,7]
[319545895,1710841839614,-173.031918,0.00048498,49]
[319545897,1710841839624,-150.0,0.00048549,7]
[319545899,1710841839634,-10000.0,0.00048608,3]
[319545901,1710841839643,-178.31,0.00048644,2]
[319545903,1710841839653,-500.0,0.00048644,2]
[319545905,1710841839662,-150.0,0.00048666,7]
[319545907,1710841839671,-272.23,0.0004867,2]
[319545909,1710841839681,-150.0,0.00048673,7]
[319545910,1710841839690,-150.0,0.00048709,7]
[319545912,1710841839699,-150.0,0.00048759,7]
[319545914,1710841839709,-150.0,0.00048762,7]
[319545916,1710841839718,-150.0,0.0004877,7]
[319545918,1710841839731,-150.0,0.00048777,7]
[319545920,1710841839740,-173.031918,0.00048798,49]
[319545922,1710841839749,-150.0,0.00048849,2]
[319545924,1710841839758,-150.0,0.00048849,2]
[319545926,1710841839767,-150.0,0.00048849,2]
[319545928,1710841839776,-150.0,0.00048849,2]
[319545930,1710841839786,-150.0,0.00048849,2]
[319545932,1710841839795,-150.0,0.00048849,2]
[319545934,1710841839805,-150.0,0.00048849,2]
[319545935,1710841839813,-150.0,0.00048849,2]
[319545937,1710841839823,-150.0,0.00048849,2]
[319545939,1710841839832,-150.0,0.00048849,2]
[319545941,1710841839841,-150.0,0.00048849,2]
[319545943,1710841839851,-150.0,0.00048849,2]
[319545945,1710841839860,-150.0,0.00048849,2]
[319545947,1710841839869,-150.0,0.00048849,2]
[319545948,1710841839879,-150.0,0.00048849,2]
[319545950,1710841839889,-450.0,0.00048849,2]
[319545953,1710841839903,-150.0,0.00048849,2]
[319545955,1710841839912,-150.0,0.00048854,7]
[319545956,1710841839921,-150.0,0.00048878,7]
[319545958,1710841839930,-150.0,0.00048892,7]
[319545960,1710841839939,-1100.0,0.000489,17]
[319545962,1710841839948,-150.0,0.00048932,7]
[319545964,1710841839957,-150.0,0.00048957,7]
[319545966,1710841839967,-150.0,0.00048978,7]
[319545968,1710841839976,-150.0,0.00048978,7]
[319545970,1710841839987,-100000.0,0.00049,19]
[319545972,1710841839996,-2500.0,0.00049,2]
[319545974,1710841840006,-500.0,0.00049,30]
[319545975,1710841840015,-500.0,0.00049,30]
[319545977,1710841840024,-500.0,0.00049,30]
[319545979,1710841840035,-500.0,0.00049,30]
[319545981,1710841840052,-500.0,0.00049,30]
[319545983,1710841840063,-500.0,0.00049,30]
[319545985,1710841840073,-500.0,0.00049,30]
[319545987,1710841840084,-500.0,0.00049,30]
[319545988,1710841840094,-500.0,0.00049,30]
[319545990,1710841840103,-500.0,0.00049,120]
[319545992,1710841840112,-500.0,0.00049,120]
[319545994,1710841840123,-500.0,0.00049,120]
[319545996,1710841840133,-500.0,0.00049,120]
[319545998,1710841840141,-500.0,0.00049,120]
[319546000,1710841840150,-500.0,0.00049,120]
[319546002,1710841840160,-500.0,0.00049,120]
[319546003,1710841840170,-500.0,0.00049,120]
[319546005,1710841840179,-578.19,0.00049,120]
[319546007,1710841840189,-150.0,0.00049004,7]
[319546010,1710841840206,-150.0,0.00049032,7]
[319546012,1710841840220,-361.408,0.00049036,2]
[319546014,1710841840230,-150.0,0.00049073,7]
[319546016,1710841840241,-150.0,0.00049075,7]
[319546018,1710841840251,-150.0,0.00049093,7]
[319546020,1710841840261,-157.95,0.000491,6]
[319546022,1710841840272,-1069.29307327,0.00049121,7]
[319546024,1710841840282,-150.0,0.0004917,7]
[319546026,1710841840292,-168.3221185,0.00049174,30]
[319546028,1710841840302,-150.0,0.00049178,2]
[319546030,1710841840311,-150.0,0.00049178,2]
[319546032,1710841840321,-150.0,0.00049189,7]
[319546034,1710841840331,-178.31,0.00049192,2]
[319546036,1710841840341,-150.0,0.00049215,7]
[319546038,1710841840350,-152.08751084,0.00049218,7]
[319546039,1710841840360,-150.0,0.00049219,7]
[319546041,1710841840369,-150.0,0.00049222,7]
[319546043,1710841840381,-218.0,0.0004923,68]
[319546045,1710841840391,-150.0,0.00049234,7]
[319546047,1710841840400,-1500.0,0.00049242,7]
[319546049,1710841840410,-150.0,0.00049254,7]
[319546051,1710841840419,-1500.0,0.00049279,7]
[319546052,1710841840428,-150.0,0.00049284,7]
[319546053,1710841840437,-150.0,0.00049285,7]
[319546054,1710841840447,-150.0,0.00049296,7]
[319546055,1710841840456,-150.0,0.00049298,7]
[319546056,1710841840465,-150.0,0.00049303,7]
[319546057,1710841840475,-150.0,0.00049311,7]
[319546058,1710841840485,-1289.43,0.00049315,120]
[319546059,1710841840495,-1289.43,0.00049315,120]
[319546060,1710841840504,-1289.43,0.00049315,120]
[319546061,1710841840514,-1289.43,0.00049315,120]
[319546063,1710841840523,-150.0,0.00049342,7]
[319546065,1710841840532,-150.0,0.00049354,7]
[319546067,1710841840541,-150.0,0.00049405,7]
[319546069,1710841840551,-174.60136751,0.00049408,30]
[319546071,1710841840560,-150.0,0.00049451,7]
[319546073,1710841840569,-150.0,0.0004948,7]
[319546075,1710841840579,-150.0,0.00049488,7]
[319546077,1710841840588,-150.0,0.00049494,7]
[319546080,1710841840597,-14125.55939194,0.00049495,60]
[319546082,1710841840607,-205.1716943,0.00049495,4]
[319546084,1710841840617,-972.05065311,0.00049495,4]
[319546086,1710841840629,-166.83114734,0.00049497,3]
[319546088,1710841840638,-2227.77089769,0.000495,11]
[319546090,1710841840647,-8989.62601908,0.00049507,11]
[319546092,1710841840656,-150.0,0.00049508,7]
[319546094,1710841840665,-150.0,0.00049509,7]
[319546096,1710841840675,-150.0,0.00049515,7]
[319546098,1710841840684,-150.0,0.00049516,7]
[319546100,1710841840693,-150.59441572,0.00049525,7]
[319546102,1710841840702,-150.0,0.00049528,7]
[319546104,1710841840711,-150.0,0.00049533,7]
[319546106,1710841840721,-150.0,0.00049544,7]
[319546108,1710841840730,-150.0,0.00049556,7]
[319546110,1710841840740,-150.0,0.00049565,7]
[319546112,1710841840749,-150.0,0.00049573,7]
[319546114,1710841840758,-150.0,0.00049576,7]
[319546116,1710841840767,-150.0,0.00049584,7]
[319546118,1710841840776,-150.0,0.00049593,7]
[319546120,1710841840786,-200.0,0.00049596,30]
[319546122,1710841840796,-200.0,0.00049596,30]
[319546124,1710841840805,-800.0,0.00049596,30]
[319546126,1710841840815,-200.0,0.00049596,30]
[319546128,1710841840824,-200.0,0.00049596,30]
[319546130,1710841840834,-200.0,0.00049596,30]
[319546132,1710841840843,-800.0,0.00049596,30]
[319546134,1710841840852,-800.0,0.00049596,30]
[319546136,1710841840862,-200.0,0.00049596,30]
[319546138,1710841840871,-200.0,0.00049596,30]
[319546140,1710841840881,-200.0,0.00049597,30]
[319546142,1710841840890,-800.0,0.00049597,30]
[319546144,1710841840900,-200.0,0.00049597,30]
[319546147,1710841840913,-150.0,0.00049619,7]
[319546149,1710841840923,-150.0,0.00049623,7]
[319546151,1710841840932,-150.0,0.00049639,7]
[319546153,1710841840942,-150.0,0.00049647,7]
[319546155,1710841840952,-150.0,0.00049656,7]
[319546157,1710841840962,-301.97972035,0.00049664,7]
[319546159,1710841840972,-150.0,0.00049673,7]
[319546161,1710841840981,-150.0,0.00049675,7]